bitfinex/quotes_SOLUSD_20241123
["timestamp","ask_amount","ask_price","bid_price","bid_amount"]
[1732396602286,15.2297,254.46,254.28,26.08340869]
[1732396602287,23.776884,254.38,254.28,6.8821]
[1732396602461,19.20130869,254.35,254.26,19.20130869]
[1732396602782,19.20130869,254.35,254.25,1.9665]
[1732396602994,19.20130869,254.35,254.26,19.20130869]
[1732396603686,19.20130869,254.37,254.28,19.20130869]
[1732396604090,23.776884,254.36,254.15,10.0]
[1732396604262,23.776884,254.34,254.25,19.20130869]
[1732396604573,27.3911,254.39,254.21,4.9171]
[1732396604574,23.776884,254.32,254.21,4.9171]
[1732396604778,19.20130869,254.35,254.26,19.20130869]
[1732396605183,19.20130869,254.35,254.27,1.9664]
[1732396606069,19.20130869,254.37,254.28,19.20130869]
[1732396607084,19.20130869,254.37,254.28,21.16750869]
[1732396607287,19.20130869,254.39,254.3,19.20130869]
[1732396607464,19.20130869,254.37,254.3,19.20130869]
[1732396608181,19.20130869,254.39,254.3,19.20130869]
[1732396608567,19.20130869,254.41,254.32,19.20130869]
[1732396608969,19.20130869,254.41,254.15,19.20130869]
[1732396608970,19.20130869,254.35,254.12,10.0]
[1732396609297,19.20130869,254.35,254.27,19.20130869]
[1732396610363,19.20130869,254.35,254.08,10.0]
[1732396610364,19.20130869,254.3,254.08,10.0]
[1732396610568,19.20130869,254.3,254.06,10.0]
[1732396610569,19.20130869,254.3,254.2,19.20130869]
[1732396611796,19.20130869,254.3,254.21,1.9668]
[1732396611969,19.20130869,254.3,254.2,19.20130869]
[1732396611970,19.20130869,254.28,254.06,6.888]
[1732396612292,19.20130869,254.28,254.12,19.20130869]
[1732396612293,19.20130869,254.22,254.12,19.20130869]
[1732396612595,19.20130869,254.2,254.12,19.20130869]
[1732396612768,19.20130869,254.22,254.12,19.20130869]
[1732396613182,19.20130869,254.19,254.06,4.92]
[1732396613375,30.323584,254.18,254.08,19.20130869]
[1732396613584,6.5467,254.18,254.1,19.20130869]
[1732396613884,42.97819269,254.17,254.03,1.9682]
[1732396614087,23.776884,254.14,254.06,19.20130869]
[1732396615693,19.20130869,254.17,254.08,19.20130869]
[1732396615994,6.5467,254.25,254.15,38.40261738]
[1732396616176,23.13370869,254.3,254.21,19.20130869]
[1732396616984,3.9324,254.3,254.23,19.20130869]
[1732396617492,6.5467,254.32,254.25,19.20130869]
[1732396617702,6.5467,254.32,254.15,19.20130869]
[1732396617703,23.13260869,254.37,254.27,19.20130869]
[1732396618389,19.20130869,254.35,254.27,19.20130869]
[1732396618696,3.9315,254.36,254.27,19.20130869]
[1732396619192,19.20130869,254.35,254.27,19.20130869]
[1732396619408,19.20130869,254.33,254.25,19.20130869]
[1732396619572,23.776884,254.28,254.19,19.20130869]
[1732396619981,19.20130869,254.29,254.21,19.20130869]
[1732396620171,19.20130869,254.31,254.21,19.20130869]
[1732396620384,19.20130869,254.31,254.23,19.20130869]
[1732396620777,143.2367,254.39,254.25,19.20130869]
[1732396620778,19.20130869,254.35,254.25,19.20130869]
[1732396620982,19.20130869,254.33,254.25,19.20130869]
[1732396621177,19.20130869,254.35,254.27,19.20130869]
[1732396621381,19.20130869,254.37,254.27,19.20130869]
[1732396621771,19.20130869,254.31,254.22,19.20130869]
[1732396622776,3.9323,254.3,254.22,19.20130869]
[1732396623307,6.3367,254.39,254.1,20.0]
[1732396623308,19.20130869,254.34,254.14,4.9185]
[1732396623499,19.20130869,254.34,254.24,19.20130869]
[1732396623688,19.20130869,254.36,254.28,19.20130869]
[1732396624194,3.9312,254.37,254.28,19.20130869]
[1732396624393,3.9312,254.37,254.32,19.20130869]
[1732396624576,3.9312,254.37,254.16,10.0]
[1732396624577,23.13250869,254.37,254.28,19.20130869]
[1732396624778,19.20130869,254.43,254.34,19.20130869]
[1732396625004,25.53800869,254.45,254.36,19.20130869]
[1732396625179,19.20130869,254.43,254.36,19.20130869]
[1732396625507,6.3367,254.45,254.36,19.20130869]
[1732396625803,19.20130869,254.41,254.34,19.20130869]
[1732396625981,19.20130869,254.41,254.23,15.1332]
[1732396625982,19.20130869,254.41,254.32,19.20130869]
[1732396626579,3.9308,254.4,254.32,19.20130869]
[1732396626999,23.776884,254.39,254.32,19.20130869]
[1732396627305,42.97819269,254.39,254.3,19.20130869]
[1732396627811,42.97819269,254.39,254.28,1.9663]
[1732396627812,3.9308,254.4,254.34,19.20130869]
[1732396628386,3.9308,254.4,254.32,19.20130869]
[1732396628791,3.9302,254.44,254.36,19.20130869]
[1732396628990,3.9302,254.44,254.38,19.20130869]
[1732396629195,3.9302,254.44,254.36,19.20130869]
[1732396629505,3.9302,254.44,254.38,19.20130869]
[1732396629808,10.0,254.58,254.4,19.20130869]
[1732396629809,19.20130869,254.49,254.4,19.20130869]
[1732396630104,3.9292,254.5,254.42,19.20130869]
[1732396631179,19.20130869,254.49,254.4,19.20130869]
[1732396631711,19.20130869,254.43,254.33,19.20130869]
[1732396631896,23.776884,254.49,254.33,19.20130869]
[1732396631897,19.20130869,254.41,254.33,19.20130869]
[1732396632099,19.20130869,254.39,254.31,19.20130869]
[1732396632305,19.20130869,254.39,254.29,19.20130869]
[1732396632488,19.20130869,254.39,254.31,19.20130869]
[1732396632696,3.9308,254.4,254.35,19.20130869]
[1732396633317,19.20130869,254.41,254.33,19.20130869]
[1732396633515,19.20130869,254.41,254.31,1.966]
[1732396633516,3.9305,254.42,254.35,19.20130869]
[1732396633716,3.9305,254.42,254.37,19.20130869]
[1732396633888,19.20130869,254.47,254.39,19.20130869]
[1732396634088,143.1088,254.51,254.31,6.8812]
[1732396634089,19.20130869,254.49,254.41,19.20130869]
[1732396634394,3.929,254.52,254.45,19.20130869]
[1732396634594,38.33070869,254.55,254.47,19.20130869]
[1732396634784,6.4035,254.58,254.41,19.20130869]
[1732396634785,23.12950869,254.57,254.49,19.20130869]
[1732396635707,3.9282,254.57,254.49,19.20130869]
[1732396638408,6.4035,254.58,254.49,21.16590869]
[1732396639111,20.0,254.57,254.49,21.16590869]
[1732396639482,43.12960869,254.57,254.49,19.20130869]
[1732396639683,23.9283,254.57,254.49,19.20130869]
[1732396640607,3.9283,254.57,254.49,19.20130869]
[1732396640909,3.9279,254.59,254.53,19.20130869]
[1732396641706,3.9275,254.61,254.53,19.20130869]
[1732396641912,6.0825,254.64,254.57,19.20130869]
[1732396642097,23.12830869,254.65,254.57,19.20130869]
[1732396642605,23.12830869,254.65,254.55,19.20130869]
[1732396642606,19.20130869,254.63,254.55,19.20130869]
[1732396643103,3.927,254.65,254.55,19.20130869]
[1732396643104,19.20130869,254.65,254.55,19.20130869]
[1732396643311,19.20130869,254.6,254.51,19.20130869]
[1732396644496,3.9278,254.59,254.51,19.20130869]
[1732396644692,23.9276,254.61,254.55,19.20130869]
[1732396645015,23.9276,254.61,254.53,19.20130869]
[1732396645394,23.9276,254.61,254.55,19.20130869]
[1732396646309,19.20130869,254.58,254.5,4.9115]
[1732396647095,19.20130869,254.58,254.51,19.20130869]
[1732396647301,19.20130869,254.6,254.51,19.20130869]
[1732396648120,3.9278,254.59,254.51,19.20130869]
[1732396649203,19.20130869,254.66,254.57,19.20130869]
[1732396649620,20.0,254.65,254.57,19.20130869]
[1732396650617,3.9271,254.65,254.59,19.20130869]
[1732396652419,15.8813,254.69,254.63,19.20130869]
[1732396652604,3.9261,254.71,254.67,19.20130869]
[1732396652800,15.2635,254.75,254.67,19.20130869]
[1732396652801,3.9257,254.73,254.67,19.20130869]
[1732396653598,19.189,254.75,254.69,19.20130869]
[1732396655530,19.20130869,254.74,254.65,19.20130869]
[1732396656025,20.0,254.73,254.65,19.20130869]
[1732396656319,19.20130869,254.72,254.65,19.20130869]
[1732396656624,3.926,254.71,254.65,19.20130869]
[1732396657894,3.9257,254.73,254.58,43.776884]
[1732396658106,3.9257,254.73,254.68,19.20130869]
[1732396658331,3.9257,254.73,254.66,19.20130869]
[1732396660202,19.1889,254.75,254.68,19.20130869]
[1732396660402,23.9254,254.75,254.68,19.20130869]
[1732396660926,23.9254,254.75,254.7,19.20130869]
[1732396660927,3.9254,254.75,254.7,19.20130869]
[1732396662019,15.2635,254.81,254.7,19.20130869]
[1732396662020,19.20130869,254.8,254.74,19.20130869]
[1732396662231,3.9248,254.79,254.74,19.20130869]
[1732396662913,15.2635,254.81,254.74,19.20130869]
[1732396662914,19.188,254.81,254.74,19.20130869]
[1732396663313,38.38930869,254.81,254.74,19.20130869]
[1732396663518,15.2635,254.81,254.76,19.20130869]
[1732396663718,10.2961,254.82,254.77,19.20130869]
[1732396664019,10.2961,254.82,254.75,19.20130869]
[1732396665128,3.9241,254.84,254.79,19.20130869]
[1732396666224,19.20130869,254.85,254.77,19.20130869]
[1732396666429,20.0,254.84,254.77,19.20130869]
[1732396666727,20.0,254.82,254.75,19.20130869]
[1732396667410,15.2635,254.87,254.67,25.68900869]
[1732396667411,23.9237,254.86,254.79,19.20130869]
[1732396667806,3.9237,254.86,254.79,19.20130869]
[1732396668007,15.2635,254.87,254.81,19.20130869]
[1732396668209,25.57310869,254.88,254.71,16.8705]
[1732396668210,10.2953,254.88,254.83,19.20130869]
[1732396668426,3.9231,254.9,254.83,19.20130869]
[1732396668626,19.20130869,254.92,254.85,19.20130869]
[1732396668627,23.12420869,254.92,254.85,19.20130869]
[1732396669724,20.0,254.91,254.85,19.20130869]
[1732396670320,20.0,254.92,254.85,21.16310869]
[1732396670624,19.20130869,254.88,254.8,19.20130869]
[1732396671637,23.12470869,254.88,254.8,19.20130869]
[1732396673429,19.20130869,254.86,254.78,19.20130869]
[1732396674913,19.20130869,254.82,254.74,19.20130869]
[1732396675536,23.12570869,254.82,254.74,19.20130869]
[1732396676647,19.20130869,254.78,254.68,21.16450869]
[1732396676816,19.20130869,254.76,254.68,19.20130869]
[1732396677020,19.20130869,254.76,254.64,1.9635]
[1732396677021,19.20130869,254.74,254.66,19.20130869]
[1732396677550,3.9257,254.73,254.66,19.20130869]
[1732396679045,3.9254,254.75,254.68,19.20130869]
[1732396681237,23.9254,254.75,254.68,19.20130869]
[1732396681746,23.9254,254.75,254.66,1.9633]
[1732396681747,20.0,254.75,254.7,19.20130869]
[1732396681934,20.0,254.77,254.72,19.20130869]
[1732396682124,20.0,254.77,254.7,19.20130869]
[1732396682329,20.0,254.77,254.68,19.20130869]
[1732396682640,20.0,254.75,254.68,19.20130869]
[1732396683330,19.20130869,254.72,254.64,19.20130869]
[1732396683539,20.0,254.71,254.64,19.20130869]
[1732396684036,19.20130869,254.68,254.6,24.11080869]
[1732396684426,20.0,254.67,254.6,19.20130869]
[1732396684624,20.0,254.65,254.58,19.20130869]
[1732396684819,19.20130869,254.64,254.56,19.20130869]
[1732396685245,20.0,254.63,254.56,19.20130869]
[1732396685455,20.0,254.63,254.48,15.8638]
[1732396685456,19.20130869,254.6,254.52,19.20130869]
[1732396686145,20.0,254.63,254.56,19.20130869]
[1732396686328,23.9273,254.63,254.56,19.20130869]
[1732396687429,20.0,254.63,254.56,19.20130869]
[1732396687728,20.0,254.63,254.56,21.16540869]
[1732396688037,3.927,254.65,254.58,19.20130869]
[1732396688832,10.3125,254.67,254.63,19.20130869]
[1732396689868,19.20130869,254.72,254.65,19.20130869]
[1732396690148,3.926,254.71,254.67,19.20130869]
[1732396690538,3.926,254.71,254.65,19.20130869]
[1732396690737,6.4196,254.73,254.67,19.20130869]
[1732396690943,10.3454,254.73,254.67,19.20130869]
[1732396691340,10.3454,254.73,254.65,19.20130869]
[1732396692437,10.3454,254.73,254.67,19.20130869]
[1732396693633,6.4196,254.73,254.69,19.20130869]
[1732396693831,3.9254,254.75,254.71,19.20130869]
[1732396694559,3.9251,254.77,254.71,19.20130869]
[1732396694930,10.0092,254.79,254.71,19.20130869]
[1732396695134,10.0092,254.79,254.73,19.20130869]
[1732396695554,20.0,254.78,254.73,19.20130869]
[1732396695744,39.20130869,254.78,254.71,19.20130869]
[1732396695942,19.20130869,254.74,254.67,19.20130869]
[1732396696142,20.0,254.73,254.65,19.20130869]
[1732396696332,19.20130869,254.72,254.65,19.20130869]
[1732396697365,3.926,254.71,254.65,19.20130869]
[1732396698154,23.926,254.71,254.65,19.20130869]
[1732396699839,23.926,254.71,254.63,19.20130869]
[1732396700458,19.20130869,254.66,254.57,19.20130869]
[1732396701139,19.20130869,254.66,254.59,19.20130869]
[1732396701446,3.9269,254.65,254.59,19.20130869]
[1732396702138,19.20130869,254.62,254.53,19.20130869]
[1732396702346,19.20130869,254.6,254.51,19.20130869]
[1732396702948,57.2442,254.65,254.49,19.20130869]
[1732396702949,19.20130869,254.58,254.49,19.20130869]
[1732396703152,19.20130869,254.58,254.51,19.20130869]
[1732396703346,3.9281,254.57,254.51,19.20130869]
[1732396703946,3.9281,254.57,254.44,4.9127]
[1732396703947,6.5725,254.54,254.44,4.9127]
[1732396704150,25.77380869,254.54,254.46,19.20130869]
[1732396705065,3.9288,254.53,254.44,19.20130869]
[1732396705262,19.20130869,254.52,254.42,19.20130869]
[1732396705637,19.20130869,254.48,254.33,15.70736]
[1732396705843,19.20130869,254.44,254.33,1.9659]
[1732396706145,19.20130869,254.44,254.35,19.20130869]
[1732396706556,20.0,254.43,254.35,19.20130869]
[1732396707247,3.9299,254.46,254.39,19.20130869]
[1732396707444,20.0,254.49,254.41,19.20130869]
[1732396707762,3.9296,254.48,254.41,19.20130869]
[1732396709248,20.0,254.49,254.43,19.20130869]
[1732396709563,3.9292,254.5,254.43,19.20130869]
[1732396709774,20.0,254.52,254.45,19.20130869]
[1732396709775,23.929,254.52,254.45,19.20130869]
[1732396709947,3.929,254.52,254.47,19.20130869]
[1732396710359,6.5725,254.54,254.49,19.20130869]
[1732396711045,3.9281,254.58,254.52,19.20130869]
[1732396711362,10.3085,254.6,254.54,19.20130869]
[1732396712374,10.3085,254.6,254.56,19.20130869]
[1732396712669,156.7153,254.71,254.59,19.20130869]
[1732396712670,3.927,254.65,254.59,19.20130869]
[1732396712842,3.927,254.65,254.6,19.20130869]
[1732396713047,3.927,254.65,254.58,19.20130869]
[1732396713463,6.4139,254.66,254.6,19.20130869]
[1732396714067,6.4139,254.66,254.62,19.20130869]
[1732396714248,6.4139,254.66,254.6,19.20130869]
[1732396714639,6.4139,254.66,254.62,19.20130869]
[1732396714941,20.0,254.67,254.62,19.20130869]
[1732396715140,6.2505,254.72,254.56,4.9104]
[1732396715141,10.1764,254.72,254.66,19.20130869]
[1732396716263,29.37770869,254.72,254.64,19.20130869]
[1732396716668,20.0,254.71,254.64,19.20130869]
[1732396716981,29.37770869,254.72,254.64,19.20130869]
[1732396717381,19.20130869,254.7,254.44,16.01769254]
[1732396717687,19.20130869,254.64,254.56,19.20130869]
[1732396718150,19.20130869,254.64,254.54,19.20130869]
[1732396718553,3.9272,254.63,254.56,19.20130869]
[1732396718770,19.20130869,254.64,254.56,19.20130869]
[1732396718954,19.20130869,254.64,254.52,4.9112]
[1732396719262,19.20130869,254.64,254.55,19.20130869]
[1732396720286,3.9272,254.63,254.57,19.20130869]
[1732396720575,3.9272,254.63,254.52,19.20130869]
[1732396720576,19.20130869,254.6,254.52,19.20130869]
[1732396720768,19.20130869,254.6,254.5,19.20130869]
[1732396721577,3.9278,254.59,254.5,19.20130869]
[1732396722757,19.20130869,254.62,254.52,19.20130869]
[1732396722963,19.20130869,254.62,254.54,19.20130869]
[1732396724584,3.9275,254.61,254.54,19.20130869]
[1732396725691,42.97819269,254.58,254.48,19.20130869]
[1732396726084,19.20130869,254.54,254.46,19.20130869]
[1732396726577,3.9288,254.53,254.46,19.20130869]
[1732396726981,20.0,254.49,254.4,19.20130869]
[1732396727161,19.20130869,254.48,254.4,19.20130869]
[1732396727361,39.20130869,254.46,254.38,19.20130869]
[1732396728475,3.93,254.45,254.38,19.20130869]
[1732396728672,23.776884,254.44,254.24,6.01769254]
[1732396728881,19.20130869,254.43,254.34,19.20130869]
[1732396729282,20.0,254.44,254.36,19.20130869]
[1732396729490,3.93,254.45,254.38,19.20130869]
[1732396733159,19.20130869,254.43,254.27,4.9159]
[1732396733386,19.20130869,254.43,254.33,19.20130869]
[1732396733387,23.776884,254.4,254.33,19.20130869]
[1732396734273,23.776884,254.38,254.31,19.20130869]
[1732396734464,3.9309,254.39,254.33,19.20130869]
[1732396734665,39.20130869,254.37,254.25,1.9665]
[1732396734865,23.776884,254.35,254.28,19.20130869]
[1732396735286,15.8153,254.36,254.28,19.20130869]
[1732396735487,15.8153,254.36,254.3,19.20130869]
[1732396735787,15.8153,254.36,254.32,19.20130869]
[1732396735990,6.315,254.38,254.32,19.20130869]
[1732396736192,6.315,254.38,254.34,19.20130869]
[1732396736403,20.0,254.42,254.34,19.20130869]
[1732396737579,23.9305,254.42,254.34,19.20130869]
[1732396737971,15.8153,254.43,254.4,19.20130869]
[1732396738193,19.7457,254.43,254.4,19.20130869]
[1732396738696,19.7457,254.43,254.38,19.20130869]
[1732396739773,19.7457,254.43,254.27,4.9159]
[1732396739774,19.20130869,254.41,254.27,4.9159]
[1732396739969,23.776884,254.38,254.31,19.20130869]
[1732396740989,23.776884,254.38,254.27,6.8823]
[1732396740990,19.20130869,254.41,254.33,19.20130869]
[1732396741177,3.9308,254.4,254.33,19.20130869]
[1732396741371,20.0,254.42,254.35,19.20130869]
[1732396742268,15.8153,254.43,254.37,19.20130869]
[1732396742469,15.8153,254.43,254.32,6.8809]
[1732396742470,6.315,254.44,254.39,19.20130869]
[1732396742686,23.13070869,254.49,254.41,19.20130869]
[1732396743767,3.9294,254.49,254.43,19.20130869]
[1732396743969,22.1303,254.5,254.43,19.20130869]
[1732396744170,26.0596,254.5,254.43,19.20130869]
[1732396744803,22.1303,254.5,254.43,19.20130869]
[1732396744989,19.20130869,254.55,254.47,19.20130869]
[1732396745293,22.1303,254.56,254.49,19.20130869]
[1732396745467,22.1303,254.56,254.51,19.20130869]
[1732396745468,26.0587,254.56,254.51,19.20130869]
[1732396745671,22.1303,254.62,254.55,19.20130869]
[1732396745976,22.1303,254.62,254.57,19.20130869]
[1732396746798,26.0577,254.62,254.55,19.20130869]
[1732396747197,26.0577,254.62,254.57,19.20130869]
[1732396748879,26.0577,254.62,254.52,1.9644]
[1732396748880,20.0,254.67,254.61,19.20130869]
[1732396749887,3.9268,254.66,254.61,19.20130869]
[1732396750697,23.12810869,254.66,254.57,19.20130869]
[1732396750895,20.0,254.65,254.57,19.20130869]
[1732396751893,46.90529269,254.64,254.55,19.20130869]
[1732396753492,3.9271,254.64,254.59,19.20130869]
[1732396754293,23.12810869,254.66,254.59,19.20130869]
[1732396754600,3.9268,254.66,254.61,19.20130869]
[1732396756390,3.9265,254.68,254.65,19.20130869]
[1732396756997,3.9262,254.7,254.65,19.20130869]
[1732396757327,10.5086,254.69,254.65,19.20130869]
[1732396757485,3.9257,254.73,254.67,19.20130869]
[1732396757691,3.9254,254.75,254.71,19.20130869]
[1732396757897,3.9254,254.75,254.73,19.20130869]
[1732396758104,3.9248,254.79,254.73,19.20130869]
[1732396760192,3.9248,254.79,254.75,19.20130869]
[1732396761489,3.9248,254.79,254.73,19.20130869]
[1732396762789,19.20130869,254.77,254.69,19.20130869]
[1732396763493,23.9248,254.79,254.73,19.20130869]
[1732396763802,3.9248,254.79,254.73,19.20130869]
[1732396766891,3.9248,254.79,254.75,19.20130869]
[1732396767117,6.3822,254.8,254.71,1.9629]
[1732396767415,3.9241,254.84,254.79,19.20130869]
[1732396767716,3.9241,254.84,254.81,19.20130869]
[1732396769710,3.9232,254.89,254.83,19.20130869]
[1732396771013,23.776884,254.9,254.83,19.20130869]
[1732396772222,3.9232,254.89,254.83,19.20130869]
[1732396773597,3.9232,254.89,254.81,19.20130869]
[1732396774121,23.776884,254.88,254.81,19.20130869]
[1732396774623,23.776884,254.88,254.81,11.9923516]
[1732396775196,3.9232,254.89,254.83,11.9923516]
[1732396775798,3.923,254.91,254.85,11.9923516]
[1732396777500,15.9153516,254.91,254.83,11.9923516]
[1732396778117,23.776884,254.9,254.83,11.9923516]
[1732396778701,3.9232,254.89,254.83,11.9923516]
[1732396779514,3.9232,254.89,254.7,26.0103]
[1732396779515,11.9923516,254.87,254.79,11.9923516]
[1732396780699,3.9237,254.86,254.79,11.9923516]
[1732396781419,3.9237,254.86,254.81,11.9923516]
[1732396781622,3.9237,254.86,254.83,11.9923516]
[1732396781824,47.699984,254.9,254.85,11.9923516]
[1732396782417,3.9231,254.9,254.85,11.9923516]
[1732396784022,3.9231,254.9,254.83,11.9923516]
[1732396784216,11.9923516,254.89,254.81,11.9923516]
[1732396784522,23.776884,254.89,254.81,11.9923516]
[1732396784901,35.7692356,254.89,254.81,11.9923516]
[1732396785417,3.9234,254.88,254.81,11.9923516]
[1732396786417,3.9234,254.88,254.83,11.9923516]
[1732396786622,3.9234,254.88,254.85,11.9923516]
[1732396787615,6.3378,254.92,254.85,11.9923516]
[1732396787924,3.9229,254.91,254.85,11.9923516]
[1732396789313,15.9152516,254.91,254.81,11.9923516]
[1732396789634,11.9923516,254.89,254.81,11.9923516]
[1732396789925,11.9923516,254.87,254.79,11.9923516]
[1732396790506,11.9923516,254.89,254.79,11.9923516]
[1732396790826,23.776884,254.88,254.81,11.9923516]
[1732396791704,3.9235,254.87,254.81,11.9923516]
[1732396792729,3.9235,254.87,254.79,11.9923516]
[1732396793107,15.9158516,254.87,254.79,11.9923516]
[1732396794001,11.9923516,254.83,254.75,11.9923516]
[1732396794214,11.9923516,254.83,254.71,1.5703]
[1732396794215,11.9923516,254.83,254.73,11.9923516]
[1732396794799,11.9923516,254.83,254.75,11.9923516]
[1732396795223,3.9243,254.82,254.75,11.9923516]
[1732396795806,3.9243,254.82,254.77,11.9923516]
[1732396796709,3.9238,254.85,254.77,11.9923516]
[1732396797628,15.9161516,254.85,254.77,11.9923516]
[1732396798732,3.9234,254.88,254.81,11.9923516]
[1732396798930,3.9234,254.88,254.83,11.9923516]
[1732396800734,11.9923516,254.91,254.83,11.9923516]
[1732396800915,3.9231,254.9,254.83,11.9923516]
[1732396801639,11.9923516,254.89,254.81,11.9923516]
[1732396801938,3.9231,254.9,254.83,11.9923516]
[1732396805041,11.9923516,254.89,254.79,11.9923516]
[1732396805218,11.9923516,254.87,254.79,11.9923516]
[1732396805724,11.9923516,254.87,254.77,11.9923516]
[1732396806125,3.9237,254.86,254.77,11.9923516]
[1732396807545,11.9923516,254.83,254.75,11.9923516]
[1732396807749,23.776884,254.85,254.71,15.9183516]
[1732396807750,11.9923516,254.79,254.71,15.9183516]
[1732396808047,23.776884,254.78,254.71,11.9923516]
[1732396808336,11.9923516,254.77,254.69,11.9923516]
[1732396808541,11.9923516,254.75,254.67,11.9923516]
[1732396809644,3.9255,254.74,254.67,11.9923516]
[1732396810525,11.9923516,254.73,254.65,11.9923516]
[1732396810836,6.3048,254.7,254.63,11.9923516]
[1732396811341,16.1352,254.72,254.68,11.9923516]
[1732396811512,3.926,254.71,254.68,11.9923516]
[1732396811710,3.9254,254.75,254.7,11.9923516]
[1732396811909,3.9254,254.75,254.72,11.9923516]
[1732396812129,16.1352,254.78,254.74,11.9923516]
[1732396812340,16.1352,254.78,254.77,11.9923516]
[1732396812530,3.9247,254.8,254.77,11.9923516]
[1732396812841,3.9247,254.8,254.79,11.9923516]
[1732396813015,3.9247,254.8,254.77,11.9923516]
[1732396813637,3.9247,254.8,254.73,11.9923516]
[1732396813840,15.9170516,254.8,254.73,11.9923516]
[1732396815839,3.9249,254.78,254.73,11.9923516]
[1732396816016,3.9249,254.78,254.71,11.9923516]
[1732396818820,11.9923516,254.76,254.67,11.9923516]
[1732396819022,11.9923516,254.74,254.65,11.9923516]
[1732396820141,3.9257,254.73,254.67,11.9923516]
[1732396821217,3.9254,254.75,254.71,11.9923516]
[1732396822421,3.9248,254.79,254.71,11.9923516]
[1732396822751,3.9248,254.79,254.73,11.9923516]
[1732396823729,3.9244,254.81,254.73,11.9923516]
[1732396824124,23.776884,254.8,254.73,11.9923516]
[1732396824817,3.9248,254.79,254.73,11.9923516]
[1732396825013,11.9923516,254.78,254.71,11.9923516]
[1732396825543,3.9248,254.79,254.71,11.9923516]
[1732396825747,23.776884,254.78,254.71,11.9923516]
[1732396825933,23.776884,254.78,254.73,11.9923516]
[1732396826444,3.9251,254.77,254.73,11.9923516]
[1732396828340,35.7692356,254.76,254.68,11.9923516]
[1732396828543,23.776884,254.73,254.66,11.9923516]
[1732396828846,11.9923516,254.72,254.66,11.9923516]
[1732396829219,23.776884,254.73,254.66,11.9923516]
[1732396829718,3.9258,254.72,254.66,11.9923516]
[1732396830027,3.9258,254.72,254.68,11.9923516]
[1732396830837,3.9256,254.74,254.69,11.9923516]
[1732396832225,11.9923516,254.77,254.65,1.9634]
[1732396832226,3.9252,254.76,254.73,11.9923516]
[1732396832536,3.9252,254.76,254.71,11.9923516]
[1732396833140,11.9923516,254.79,254.71,11.9923516]
[1732396833338,3.9249,254.78,254.71,11.9923516]
[1732396833542,23.776884,254.77,254.71,11.9923516]
[1732396834223,23.776884,254.77,254.73,11.9923516]
[1732396835349,3.9252,254.76,254.73,11.9923516]
[1732396836352,3.9252,254.76,254.69,11.9923516]
[1732396837056,23.776884,254.75,254.69,11.9923516]
[1732396837655,21.4892,254.75,254.67,11.9923516]
[1732396837856,51.202084,254.76,254.56,18.09147087]
[1732396837857,23.776884,254.65,254.56,18.09147087]
[1732396838035,23.776884,254.56,254.55,6.01769254]
[1732396838230,23.776884,254.56,254.49,11.992351]
[1732396838231,35.7692356,254.56,254.49,11.992351]
[1732396838435,35.7692356,254.56,254.46,18.01004414]
[1732396838634,35.7692356,254.56,254.46,11.9923516]
[1732396838831,11.9923516,254.53,254.44,11.9923516]
[1732396839233,23.776884,254.51,254.44,11.9923516]
[1732396840259,3.9292,254.51,254.44,11.9923516]
[1732396840451,23.776884,254.5,254.44,11.9923516]
[1732396840636,23.776884,254.5,254.42,11.9923516]
[1732396840637,11.9923516,254.49,254.42,11.9923516]
[1732396840839,23.776884,254.48,254.42,11.9923516]
[1732396841630,23.776884,254.5,254.42,11.9923516]
[1732396842364,23.776884,254.48,254.42,11.9923516]
[1732396842769,23.776884,254.48,254.39,11.9923516]
[1732396843054,23.776884,254.46,254.39,11.9923516]
[1732396844053,15.306,254.45,254.41,11.9923516]
[1732396844361,23.776884,254.46,254.43,11.9923516]
[1732396844660,3.9294,254.49,254.43,11.9923516]
[1732396845035,23.776884,254.48,254.41,11.9923516]
[1732396845755,23.776884,254.46,254.41,11.9923516]
[1732396846729,3.9294,254.49,254.43,11.9923516]
[1732396846958,23.776884,254.48,254.43,11.9923516]
[1732396848059,23.776884,254.5,254.43,11.9923516]
[1732396848233,27.706084,254.5,254.43,11.9923516]
[1732396849055,11.9923516,254.49,254.41,11.9923516]
[1732396849354,27.706384,254.48,254.41,11.9923516]
[1732396850758,3.9295,254.49,254.43,11.9923516]
[1732396851650,3.9295,254.49,254.39,1.5723]
[1732396851852,15.9218516,254.49,254.42,11.9923516]
[1732396852047,3.9295,254.49,254.42,11.9923516]